[Event "HUN-chT Youth 2019"]
[Site "Budapest"]
[Date "2019.10.26"]
[Round "1.18"]
[White "Toth, Kincso"]
[Black "Berecz, Kristof"]
[Result "0-1"]
[ECO "B01"]
[WhiteElo "1556"]
[BlackElo "1469"]
[Annotator "NA"]
[PlyCount "104"]
[EventDate "2019.10.26"]
[EventType "team-tourn"]
[EventCountry "HUN"]
[SourceTitle "playchess.com"]
[Source "ChessBase"]
[SourceQuality "1"]
[TimeControl "5400+30"]

1. e4 {[%emt 0:00:00]} d5 {[%emt 0:00:00]} 2. exd5 {[%emt 0:00:00]} Qxd5 {[%emt 0:00:23]} 3. Nc3 {[%emt 0:00:16]} Qa5 {[%emt 0:01:28]} 4. d4 {[%emt 0:01:02]} c6 {[%emt 0:00:29]} 5. Nf3 {[%emt 0:01:39]} Nf6 {[%emt 0:01:17]} 6. Bd2 {[%emt 0:02:13]} Qc7 {[%emt 0:00:52]} 7. Bc4 {[%emt 0:02:08]} Bf5 {[%emt 0:01:28]} 8. Ne5 {[%emt 0:11:43]} e6 {[%emt 0:04:06]} 9. Bb3 {[%emt 0:07:29]} Bd6 {[%emt 0:05:09]} 10. Qe2 {[%emt 0:05:35]} Nbd7 {[%emt 0:16:07]} 11. Nxd7 {[%emt 0:07:57]} Qxd7 {[%emt 0:03:30]} 12. O-O-O {[%emt 0:03:16]} O-O-O {[%emt 0:04:33]} 13. Qc4 {[%emt 0:07:03]} Kb8 {[%emt 0:03:08]} 14. h3 {[%emt 0:04:56]} h6 {[%emt 0:08:11]} 15. Be3 {[%emt 0:02:00]} Qc7 {[%emt 0:07:32]} 16. Kb1 {[%emt 0:08:21]} Rd7 {[%emt 0:04:55]} 17. Qe2 {[%emt 0:08:49]} Rhd8 {[%emt 0:10:24]} 18. a3 {[%emt 0:07:16]} Ne4 {[%emt 0:09:44]} 19. Nxe4 {[%emt 0:04:23]} Bxe4 {[%emt 0:00:10]} 20. f3 {[%emt 0:02:33]} Bh7 {[%emt 0:00:48]} 21. Ka2 {[%emt 0:01:24]} Bf4 {[%emt 0:04:23]} 22. c3 {[%emt 0:03:57]} Bxe3 {[%emt 0:04:51]} 23. Qxe3 {[%emt 0:00:07]} Qd6 {[%emt 0:00:17]} 24. Qe2 {[%emt 0:01:01]} Qf4 {[%emt 0:01:03]} 25. Qe5+ {[%emt 0:01:58]} Qxe5 {[%emt 0:00:33]} 26. dxe5 {[%emt 0:00:05]} Kc7 {[%emt 0:00:34]} 27. Rxd7+ {[%emt 0:00:31]} Rxd7 {[%emt 0:00:07]} 28. Rd1 {[%emt 0:00:05]} Rxd1 {[%emt 0:00:57]} 29. Bxd1 {[%emt 0:00:05]} f6 {[%emt 0:00:10]} 30. exf6 {[%emt 0:00:47]} gxf6 {[%emt 0:00:06]} 31. Kb3 {[%emt 0:00:38]} Kd6 {[%emt 0:00:41]} 32. Kc4 {[%emt 0:01:01]} e5 {[%emt 0:01:12]} 33. Kb3 {[%emt 0:03:06]} Bd3 {[%emt 0:00:33]} 34. g3 {[%emt 0:01:32]} Kd5 {[%emt 0:00:19]} 35. h4 {[%emt 0:01:32]} b6 {[%emt 0:04:17]} 36. a4 {[%emt 0:00:25]} a5 {[%emt 0:00:15]} 37. Ka3 {[%emt 0:00:29]} Kc4 {[%emt 0:02:03]} 38. Bb3+ {[%emt 0:00:12]} Kc5 {[%emt 0:00:06]} 39. Bd1 {[%emt 0:00:05]} f5 {[%emt 0:01:00]} 40. b3 {[%emt 0:00:14]} e4 {[%emt 0:00:22]} 41. fxe4 {[%emt 0:00:24]} fxe4 {[%emt 0:00:14]} 42. g4 {[%emt 0:00:23]} e3 {[%emt 0:00:08]} 43. g5 {[%emt 0:00:13]} e2 {[%emt 0:00:42]} 44. Bxe2 {[%emt 0:00:05]} Bxe2 {[%emt 0:00:05]} 45. g6 {[%emt 0:00:14]} Bh5 {[%emt 0:00:17]} 46. g7 {[%emt 0:00:12]} Bf7 {[%emt 0:00:02]} 47. Kb2 {[%emt 0:01:30]} b5 {[%emt 0:00:25]} 48. axb5 {[%emt 0:00:16]} cxb5 {[%emt 0:00:06]} 49. Kc2 {[%emt 0:00:20]} a4 {[%emt 0:00:55]} 50. bxa4 {[%emt 0:00:11]} bxa4 {[%emt 0:00:06]} 51. Kb2 {[%emt 0:00:16]} Kc4 {[%emt 0:00:07]} 52. Ka3 {[%emt 0:02:09]} Kxc3 {[%emt 0:00:07]} 0-1

[Event "HUN-chT Youth 2019"]
[Site "Budapest"]
[Date "2019.10.26"]
[Round "1.19"]
[White "Tubak, Daniel"]
[Black "Horvath, Csongor Endre"]
[Result "1-0"]
[ECO "B76"]
[WhiteElo "2219"]
[BlackElo "1868"]
[Annotator "ChessBase"]
[PlyCount "73"]
[EventDate "2019.10.26"]
[EventType "team-tourn"]
[EventCountry "HUN"]
[SourceTitle "playchess.com"]
[Source "ChessBase"]
[SourceQuality "1"]
[TimeControl "5400+30"]

1. e4 {[%emt 0:00:00]} c5 {[%emt 0:00:00]} 2. Nf3 {[%emt 0:00:04]} d6 {[%emt 0:00:00]} 3. d4 {[%emt 0:00:06]} cxd4 {[%emt 0:00:14]} 4. Nxd4 {[%emt 0:00:07]} Nf6 {[%emt 0:00:13]} 5. Nc3 {[%emt 0:00:11]} g6 {[%emt 0:00:23]} 6. Be3 {[%emt 0:00:19]} Bg7 {[%emt 0:00:28]} 7. f3 {[%emt 0:00:11]} Nc6 {[%emt 0:00:18]} 8. Qd2 {[%emt 0:00:11]} O-O {[%emt 0:00:29]} 9. O-O-O {[%emt 0:00:12]} d5 {[%emt 0:00:34]} 10. Kb1 {[%emt 0:00:07]} Nxd4 {[%emt 0:00:19]} 11. e5 {[%emt 0:00:08]} Nf5 {[%emt 0:00:05]} 12. exf6 {[%emt 0:00:09]} exf6 {[%emt 0:00:16]} 13. Bc5 {[%emt 0:00:06]} d4 {[%emt 0:00:39]} 14. Bxf8 {[%emt 0:01:40]} Qxf8 {[%emt 0:00:12]} 15. Nb5 {[%emt 0:00:20]} Ne3 {[%emt 0:01:12]} 16. Re1 {[%emt 0:02:30]} f5 {[%emt 0:01:31]} 17. Nxd4 {[%emt 0:10:45]} f4 {[%emt 0:00:09]} 18. g4 {[%emt 0:03:45]} Be6 {[%emt 0:04:04]} 19. Nxe6 {[%emt 0:01:24]} fxe6 {[%emt 0:00:02]} 20. Bd3 {[%emt 0:01:46]} Rd8 {[%emt 0:01:52]} 21. Qa5 {[%emt 0:03:49]} Rd5 {[%emt 0:03:47]} 22. Qa4 {[%emt 0:04:40]} Rd4 {[%emt 0:14:57]} 23. Qxa7 {[%emt 0:07:26]} Rb4 {[%emt 0:01:16]} 24. b3 {[%emt 0:01:49]} Bd4 {[%emt 0:01:11]} 25. Qa3 {[%emt 0:01:31]} Bc3 {[%emt 0:00:34]} 26. Re2 {[%emt 0:01:28]} Qc5 {[%emt 0:01:50]} 27. Rc1 {[%emt 0:10:38]} Qd4 {[%emt 0:01:59]} 28. Rh1 {[%emt 0:11:07]} Ba1 {[%emt 0:02:17]} 29. Qc1 {[%emt 0:05:08]} Qc3 {[%emt 0:05:01]} 30. Be4 {[%emt 0:03:55]} Nc4 {[%emt 0:01:14]} 31. a3 {[%emt 0:07:19]} Bb2 {[%emt 0:00:18]} 32. Qe1 {[%emt 0:00:24]} Qd4 {[%emt 0:00:39]} 33. axb4 {[%emt 0:01:31]} Qa7 {[%emt 0:01:19]} 34. c3 {[%emt 0:00:12]} Qa1+ {[%emt 0:07:29]} 35. Kc2 {[%emt 0:00:02]} Na3+ {[%emt 0:00:05]} 36. Kd3 {[%emt 0:00:09]} Qa2 {[%emt 0:00:01]} 37. Qa1 {[%emt 0:02:05]} 1-0

[Event "HUN-chT Youth 2019"]
[Site "Budapest"]
[Date "2019.10.26"]
[Round "1.20"]
[White "Toth, Gabor"]
[Black "Kelemen, David"]
[Result "0-1"]
[ECO "A25"]
[WhiteElo "2136"]
[BlackElo "2166"]
[Annotator "ChessBase"]
[PlyCount "62"]
[EventDate "2019.10.26"]
[EventType "team-tourn"]
[EventCountry "HUN"]
[SourceTitle "playchess.com"]
[Source "ChessBase"]
[SourceQuality "1"]
[TimeControl "5400+30"]

1. g3 {[%emt 0:00:00]} g6 {[%emt 0:00:00]} 2. c4 {[%emt 0:00:00]} Bg7 {[%emt 0:00:00]} 3. Bg2 {[%emt 0:00:14]} e5 {[%emt 0:00:24]} 4. Nc3 {[%emt 0:01:02]} Nc6 {[%emt 0:00:15]} 5. e3 {[%emt 0:05:36]} d6 {[%emt 0:01:36]} 6. Nge2 {[%emt 0:01:35]} f5 {[%emt 0:00:42]} 7. f4 {[%emt 0:07:59]} Be6 {[%emt 0:10:44]} 8. d3 {[%emt 0:14:04]} Nf6 {[%emt 0:04:05]} 9. Nd5 {[%emt 0:06:05]} O-O {[%emt 0:01:39]} 10. O-O {[%emt 0:06:14]} Rb8 {[%emt 0:14:48]} 11. e4 {[%emt 0:09:00]} Qd7 {[%emt 0:04:35]} 12. Nec3 {[%emt 0:07:25]} Nd4 {[%emt 0:06:03]} 13. Ne3 {[%emt 0:05:49]} fxe4 {[%emt 0:13:27]} 14. Nxe4 {[%emt 0:02:28]} exf4 {[%emt 0:01:21]} 15. Rxf4 {[%emt 0:00:53]} Nxe4 {[%emt 0:02:19]} 16. Rxe4 {[%emt 0:01:26]} h5 {[%emt 0:10:33]} 17. Bd2 {[%emt 0:08:28]} Rf7 {[%emt 0:02:15]} 18. Bc3 {[%emt 0:01:09]} c5 {[%emt 0:00:23]} 19. Nc2 {[%emt 0:05:28]} d5 {[%emt 0:03:28]} 20. Rh4 {[%emt 0:04:46]} dxc4 {[%emt 0:03:08]} 21. dxc4 {[%emt 0:01:41]} g5 {[%emt 0:01:32]} 22. Re4 {[%emt 0:05:53]} Bf5 {[%emt 0:03:57]} 23. Bxd4 {[%emt 0:00:34]} cxd4 {[%emt 0:01:44]} 24. Re1 {[%emt 0:01:22]} Bxc2 {[%emt 0:05:40]} 25. Qxc2 {[%emt 0:00:10]} d3 {[%emt 0:00:03]} 26. Qd2 {[%emt 0:00:29]} Qd4+ {[%emt 0:00:13]} 27. Re3 {[%emt 0:01:38]} Re7 {[%emt 0:01:17]} 28. Rae1 {[%emt 0:00:44]} Rbe8 {[%emt 0:00:18]} 29. Kf2 {[%emt 0:00:03]} g4 {[%emt 0:01:20]} 30. Bd5+ {[%emt 0:00:22]} Kh8 {[%emt 0:00:04]} 31. b3 {[%emt 0:01:23]} Bh6 {[%emt 0:00:14]} 0-1

[Event "HUN-chT Youth 2019"]
[Site "Budapest"]
[Date "2019.10.26"]
[Round "1.21"]
[White "Koszta, Benedek"]
[Black "Lerant, Boglarka"]
[Result "1/2-1/2"]
[ECO "C28"]
[WhiteElo "2043"]
[BlackElo "1547"]
[Annotator "NA"]
[PlyCount "83"]
[EventDate "2019.10.26"]
[EventType "team-tourn"]
[EventCountry "HUN"]
[SourceTitle "playchess.com"]
[Source "ChessBase"]
[SourceQuality "1"]
[TimeControl "5400+30"]

1. e4 {[%emt 0:00:00]} e5 {[%emt 0:00:00]} 2. Nc3 {[%emt 0:00:00]} Nc6 {[%emt 0:00:48]} 3. Bc4 {[%emt 0:00:06]} Nf6 {[%emt 0:00:36]} 4. d3 {[%emt 0:00:18]} h6 {[%emt 0:00:47]} 5. f4 {[%emt 0:04:58]} Bb4 {[%emt 0:03:03]} 6. Nf3 {[%emt 0:01:54]} d6 {[%emt 0:01:04]} 7. O-O {[%emt 0:02:35]} Bc5+ {[%emt 0:01:47]} 8. Kh1 {[%emt 0:00:33]} a6 {[%emt 0:13:19]} 9. Nd5 {[%emt 0:03:03]} O-O {[%emt 0:03:05]} 10. c3 {[%emt 0:04:12]} b5 {[%emt 0:00:37]} 11. Bb3 {[%emt 0:00:14]} a5 {[%emt 0:09:44]} 12. Nxf6+ {[%emt 0:05:49]} Qxf6 {[%emt 0:00:59]} 13. fxe5 {[%emt 0:02:04]} Qe7 {[%emt 0:03:57]} 14. d4 {[%emt 0:03:33]} Bb6 {[%emt 0:01:10]} 15. Bd5 {[%emt 0:01:17]} Bd7 {[%emt 0:01:39]} 16. exd6 {[%emt 0:01:15]} Qxd6 {[%emt 0:02:46]} 17. Ne5 {[%emt 0:01:26]} Kh7 {[%emt 0:18:16]} 18. Bf4 {[%emt 0:04:02]} Nxe5 {[%emt 0:08:01]} 19. Bxe5 {[%emt 0:00:33]} Qg6 {[%emt 0:01:13]} 20. Bxa8 {[%emt 0:00:50]} Rxa8 {[%emt 0:00:20]} 21. Qf3 {[%emt 0:01:41]} Rf8 {[%emt 0:01:08]} 22. Qg3 {[%emt 0:01:26]} Qxg3 {[%emt 0:04:16]} 23. Bxg3 {[%emt 0:00:10]} Kg6 {[%emt 0:02:05]} 24. Rae1 {[%emt 0:02:10]} b4 {[%emt 0:03:35]} 25. e5 {[%emt 0:01:29]} Be6 {[%emt 0:01:08]} 26. a3 {[%emt 0:01:24]} bxc3 {[%emt 0:00:54]} 27. bxc3 {[%emt 0:00:09]} Rd8 {[%emt 0:00:52]} 28. Rb1 {[%emt 0:02:55]} a4 {[%emt 0:04:37]} 29. Bf2 {[%emt 0:03:12]} Ba5 {[%emt 0:01:52]} 30. Rfc1 {[%emt 0:01:44]} Bb3 {[%emt 0:00:56]} 31. h3 {[%emt 0:02:14]} Kf5 {[%emt 0:00:57]} 32. Kh2 {[%emt 0:08:42]} Ke4 {[%emt 0:01:04]} 33. Re1+ {[%emt 0:01:39]} Kd3 {[%emt 0:00:16]} 34. Re3+ {[%emt 0:00:28]} Kc2 {[%emt 0:01:27]} 35. Rbe1 {[%emt 0:04:05]} Kb2 {[%emt 0:00:59]} 36. R1e2+ {[%emt 0:03:59]} Kxa3 {[%emt 0:00:24]} 37. c4 {[%emt 0:03:51]} c6 {[%emt 0:03:29]} 38. Rf3 {[%emt 0:01:46]} Rd7 {[%emt 0:00:47]} 39. Be3 {[%emt 0:01:57]} Bc3 {[%emt 0:01:46]} 40. d5 {[%emt 0:08:09]} cxd5 {[%emt 0:00:40]} 41. cxd5 {[%emt 0:02:50]} Bxe5+ {[%emt 0:00:40]} 42. g3 {[%emt 0:01:00]} 1/2-1/2

[Event "HUN-chT Youth 2019"]
[Site "Budapest"]
[Date "2019.10.26"]
[Round "1.22"]
[White "Nagy, Adam"]
[Black "Megyaszai, Balazs"]
[Result "0-1"]
[ECO "B42"]
[WhiteElo "1561"]
[BlackElo "1894"]
[Annotator "NA"]
[PlyCount "44"]
[EventDate "2019.10.26"]
[EventType "team-tourn"]
[EventCountry "HUN"]
[SourceTitle "playchess.com"]
[Source "ChessBase"]
[SourceQuality "1"]
[TimeControl "5400+30"]

1. e4 {[%emt 0:00:00]} c5 {[%emt 0:00:00]} 2. Nf3 {[%emt 0:00:00]} d6 {[%emt 0:00:40]} 3. d4 {[%emt 0:00:11]} cxd4 {[%emt 0:00:39]} 4. Nxd4 {[%emt 0:00:14]} Nf6 {[%emt 0:00:46]} 5. Nc3 {[%emt 0:00:30]} a6 {[%emt 0:00:49]} 6. Be3 {[%emt 0:00:57]} e6 {[%emt 0:01:07]} 7. Bd3 {[%emt 0:02:18]} Be7 {[%emt 0:01:43]} 8. O-O {[%emt 0:01:28]} O-O {[%emt 0:02:15]} 9. f4 {[%emt 0:04:34]} Qc7 {[%emt 0:03:36]} 10. h3 {[%emt 0:04:17]} b5 {[%emt 0:05:40]} 11. Qd2 {[%emt 0:13:50]} Bb7 {[%emt 0:03:49]} 12. a3 {[%emt 0:02:03]} Nbd7 {[%emt 0:03:29]} 13. Rae1 {[%emt 0:04:30]} Rac8 {[%emt 0:03:38]} 14. Bf2 {[%emt 0:06:33]} Nc5 {[%emt 0:03:57]} 15. Nf3 {[%emt 0:07:33]} Qb8 {[%emt 0:04:50]} 16. Bd4 {[%emt 0:07:17]} Rcd8 {[%emt 0:05:24]} 17. Qf2 {[%emt 0:10:21]} Qa8 {[%emt 0:14:55]} 18. Nd2 {[%emt 0:04:35]} Bc6 {[%emt 0:06:55]} 19. e5 {[%emt 0:05:09]} Nxd3 {[%emt 0:03:54]} 20. cxd3 {[%emt 0:00:22]} dxe5 {[%emt 0:01:27]} 21. fxe5 {[%emt 0:01:19]} Ne8 {[%emt 0:02:11]} 22. Qg3 {[%emt 0:03:54]} Rxd4 {[%emt 0:01:54]} 0-1

[Event "HUN-chT Youth 2019"]
[Site "Budapest"]
[Date "2019.10.26"]
[Round "1.23"]
[White "Kocsmar, Akos"]
[Black "Horvath, Sebestyen"]
[Result "1-0"]
[ECO "D45"]
[WhiteElo "1916"]
[BlackElo "1051"]
[Annotator "NA"]
[PlyCount "61"]
[EventDate "2019.10.26"]
[EventType "team-tourn"]
[EventCountry "HUN"]
[SourceTitle "playchess.com"]
[Source "ChessBase"]
[SourceQuality "1"]
[TimeControl "5400+30"]

1. d4 {[%emt 0:00:00]} d5 {[%emt 0:00:00]} 2. Nf3 {[%emt 0:00:00]} c6 {[%emt 0:00:18]} 3. c4 {[%emt 0:00:00]} e6 {[%emt 0:00:31]} 4. Nc3 {[%emt 0:00:00]} Nf6 {[%emt 0:00:54]} 5. e3 {[%emt 0:00:01]} Nbd7 {[%emt 0:01:01]} 6. Qc2 {[%emt 0:00:17]} Be7 {[%emt 0:05:53]} 7. b3 {[%emt 0:01:30]} b6 {[%emt 0:08:35]} 8. Bd3 {[%emt 0:00:21]} dxc4 {[%emt 0:02:50]} 9. bxc4 {[%emt 0:00:06]} Bb7 {[%emt 0:06:41]} 10. O-O {[%emt 0:00:16]} h6 {[%emt 0:06:09]} 11. Rd1 {[%emt 0:00:16]} O-O {[%emt 0:02:19]} 12. e4 {[%emt 0:03:13]} Re8 {[%emt 0:05:16]} 13. e5 {[%emt 0:00:13]} Nf8 {[%emt 0:10:29]} 14. exf6 {[%emt 0:00:55]} Bxf6 {[%emt 0:00:15]} 15. Be3 {[%emt 0:00:09]} Rc8 {[%emt 0:07:30]} 16. Ne4 {[%emt 0:00:07]} c5 {[%emt 0:06:05]} 17. dxc5 {[%emt 0:05:24]} Bxa1 {[%emt 0:03:10]} 18. Nd6 {[%emt 0:00:04]} bxc5 {[%emt 0:01:39]} 19. Nxb7 {[%emt 0:01:45]} Qe7 {[%emt 0:02:38]} 20. Nd6 {[%emt 0:00:48]} Bf6 {[%emt 0:06:52]} 21. Nxe8 {[%emt 0:00:13]} Rxe8 {[%emt 0:01:31]} 22. Be4 {[%emt 0:00:40]} Rc8 {[%emt 0:01:58]} 23. Qd3 {[%emt 0:00:39]} Rd8 {[%emt 0:02:01]} 24. Qxd8 {[%emt 0:01:00]} Qxd8 {[%emt 0:00:12]} 25. Rxd8 {[%emt 0:00:04]} Bxd8 {[%emt 0:00:13]} 26. Bxc5 {[%emt 0:00:04]} a6 {[%emt 0:00:34]} 27. Bd6 {[%emt 0:00:11]} Nd7 {[%emt 0:01:31]} 28. c5 {[%emt 0:00:11]} Nf6 {[%emt 0:01:16]} 29. Bb7 {[%emt 0:01:17]} a5 {[%emt 0:01:36]} 30. Nd4 {[%emt 0:00:22]} Ne4 {[%emt 0:01:03]} 31. Bxe4 {[%emt 0:00:05]} 1-0

[Event "HUN-chT Youth 2019"]
[Site "Budapest"]
[Date "2019.10.26"]
[Round "1.24"]
[White "Varga, Marko"]
[Black "Szamko, Hanna"]
[Result "0-1"]
[ECO "C65"]
[WhiteElo "1020"]
[BlackElo "1402"]
[Annotator "NA"]
[PlyCount "97"]
[EventDate "2019.10.26"]
[EventType "team-tourn"]
[EventCountry "HUN"]
[SourceTitle "playchess.com"]
[Source "ChessBase"]
[SourceQuality "1"]
[TimeControl "5400+30"]

1. e4 {[%emt 0:00:13]} e5 {[%emt 0:00:00]} 2. Nf3 {[%emt 0:00:43]} Nc6 {[%emt 0:00:09]} 3. Bb5 {[%emt 0:01:05]} Bc5 {[%emt 0:00:23]} 4. c3 {[%emt 0:01:33]} Nf6 {[%emt 0:01:01]} 5. O-O {[%emt 0:01:20]} O-O {[%emt 0:04:20]} 6. Re1 {[%emt 0:02:53]} Re8 {[%emt 0:02:08]} 7. Ba4 {[%emt 0:06:07]} Bb6 {[%emt 0:02:30]} 8. Bc2 {[%emt 0:04:01]} d6 {[%emt 0:01:04]} 9. h3 {[%emt 0:01:55]} Ne7 {[%emt 0:04:58]} 10. d4 {[%emt 0:04:58]} Ng6 {[%emt 0:00:50]} 11. dxe5 {[%emt 0:03:07]} Nxe5 {[%emt 0:00:18]} 12. Nxe5 {[%emt 0:01:56]} Rxe5 {[%emt 0:00:42]} 13. Bf4 {[%emt 0:03:15]} Re8 {[%emt 0:01:10]} 14. e5 {[%emt 0:03:54]} dxe5 {[%emt 0:02:31]} 15. Qxd8 {[%emt 0:00:29]} Rxd8 {[%emt 0:00:31]} 16. Bxe5 {[%emt 0:05:27]} Nd7 {[%emt 0:03:26]} 17. Bg3 {[%emt 0:02:45]} Nf6 {[%emt 0:02:22]} 18. Bh4 {[%emt 0:02:16]} Be6 {[%emt 0:01:31]} 19. Bxf6 {[%emt 0:00:43]} gxf6 {[%emt 0:00:15]} 20. Na3 {[%emt 0:01:47]} Rd2 {[%emt 0:00:48]} 21. Rf1 {[%emt 0:01:46]} Kh8 {[%emt 0:00:48]} 22. Rad1 {[%emt 0:02:56]} Rad8 {[%emt 0:02:10]} 23. Nb5 {[%emt 0:09:36]} c5 {[%emt 0:00:36]} 24. Na3 {[%emt 0:07:17]} c4 {[%emt 0:02:47]} 25. b3 {[%emt 0:04:09]} cxb3 {[%emt 0:02:38]} 26. Bxb3 {[%emt 0:00:16]} Rxd1 {[%emt 0:00:09]} 27. Rxd1 {[%emt 0:00:42]} Rxd1+ {[%emt 0:00:06]} 28. Bxd1 {[%emt 0:00:00]} Bxa2 {[%emt 0:00:00]} 29. Bf3 {[%emt 0:00:14]} Bc5 {[%emt 0:02:29]} 30. Nc2 {[%emt 0:00:40]} b6 {[%emt 0:00:48]} 31. Ne3 {[%emt 0:00:44]} Bxe3 {[%emt 0:01:02]} 32. fxe3 {[%emt 0:00:03]} a5 {[%emt 0:00:20]} 33. Kf1 {[%emt 0:00:13]} a4 {[%emt 0:00:08]} 34. Ke1 {[%emt 0:00:19]} Bc4 {[%emt 0:01:40]} 35. Kd1 {[%emt 0:00:38]} b5 {[%emt 0:00:17]} 36. Kc2 {[%emt 0:00:22]} Kg7 {[%emt 0:00:25]} 37. g4 {[%emt 0:00:46]} h6 {[%emt 0:00:10]} 38. h4 {[%emt 0:00:44]} Kf8 {[%emt 0:00:18]} 39. Be4 {[%emt 0:01:17]} Ke7 {[%emt 0:00:20]} 40. Bd3 {[%emt 0:00:13]} a3 {[%emt 0:01:02]} 41. Bxc4 {[%emt 0:00:23]} bxc4 {[%emt 0:00:14]} 42. Kb1 {[%emt 0:00:07]} Kd6 {[%emt 0:00:56]} 43. Ka2 {[%emt 0:00:22]} Kc5 {[%emt 0:00:07]} 44. Kxa3 {[%emt 0:00:26]} Kb5 {[%emt 0:01:35]} 45. e4 {[%emt 0:00:32]} Ka5 {[%emt 0:01:28]} 46. g5 {[%emt 0:00:12]} fxg5 {[%emt 0:00:19]} 47. hxg5 {[%emt 0:00:20]} hxg5 {[%emt 0:00:10]} 48. e5 {[%emt 0:00:48]} g4 {[%emt 0:00:13]} 49. Kb2 {[%emt 0:01:32]} 0-1

[Event "HUN-chT Youth 2019"]
[Site "Budapest"]
[Date "2019.10.26"]
[Round "1.25"]
[White "Szabo, A. Martin"]
[Black "Papp, Bence"]
[Result "0-1"]
[ECO "A88"]
[WhiteElo "1769"]
[BlackElo "2184"]
[Annotator "ChessBase"]
[PlyCount "83"]
[EventDate "2019.10.26"]
[EventType "team-tourn"]
[EventCountry "HUN"]
[SourceTitle "playchess.com"]
[Source "ChessBase"]
[SourceQuality "1"]
[TimeControl "5400+30"]

1. d4 {[%emt 0:00:00]} d6 {[%emt 0:00:00]} 2. Nf3 {[%emt 0:00:00]} f5 {[%emt 0:00:23]} 3. c4 {[%emt 0:00:07]} Nf6 {[%emt 0:00:04]} 4. Nc3 {[%emt 0:00:17]} g6 {[%emt 0:00:07]} 5. g3 {[%emt 0:03:40]} Bg7 {[%emt 0:00:14]} 6. Bg2 {[%emt 0:00:05]} O-O {[%emt 0:00:08]} 7. O-O {[%emt 0:00:13]} c6 {[%emt 0:03:11]} 8. d5 {[%emt 0:11:31]} e5 {[%emt 0:00:54]} 9. dxe6 {[%emt 0:00:13]} Bxe6 {[%emt 0:00:09]} 10. Qd3 {[%emt 0:10:36]} Na6 {[%emt 0:02:18]} 11. Ng5 {[%emt 0:02:46]} Re8 {[%emt 0:02:17]} 12. Nxe6 {[%emt 0:02:45]} Rxe6 {[%emt 0:00:10]} 13. Rb1 {[%emt 0:13:10]} Nc5 {[%emt 0:01:25]} 14. Qc2 {[%emt 0:00:40]} Qe7 {[%emt 0:00:36]} 15. b4 {[%emt 0:15:40]} Nce4 {[%emt 0:07:36]} 16. Nxe4 {[%emt 0:00:18]} Nxe4 {[%emt 0:00:17]} 17. Bb2 {[%emt 0:07:22]} Rf8 {[%emt 0:18:52]} 18. e3 {[%emt 0:05:21]} g5 {[%emt 0:03:09]} 19. Rfe1 {[%emt 0:01:19]} h5 {[%emt 0:03:19]} 20. f3 {[%emt 0:03:31]} Nf6 {[%emt 0:04:26]} 21. Qd3 {[%emt 0:10:05]} f4 {[%emt 0:08:02]} 22. gxf4 {[%emt 0:01:39]} gxf4 {[%emt 0:00:38]} 23. e4 {[%emt 0:00:09]} Nd7 {[%emt 0:00:45]} 24. Bxg7 {[%emt 0:03:00]} Qxg7 {[%emt 0:01:30]} 25. Kh1 {[%emt 0:00:19]} Ne5 {[%emt 0:01:58]} 26. Qc3 {[%emt 0:00:48]} Rg6 {[%emt 0:02:36]} 27. Rg1 {[%emt 0:00:26]} Rff6 {[%emt 0:06:07]} 28. Bh3 {[%emt 0:02:54]} Rxg1+ {[%emt 0:01:03]} 29. Rxg1 {[%emt 0:00:03]} Rg6 {[%emt 0:00:06]} 30. Rxg6 {[%emt 0:00:31]} Nxg6 {[%emt 0:00:45]} 31. Be6+ {[%emt 0:01:54]} Kf8 {[%emt 0:00:58]} 32. Qxg7+ {[%emt 0:00:34]} Kxg7 {[%emt 0:00:05]} 33. c5 {[%emt 0:03:13]} dxc5 {[%emt 0:00:05]} 34. bxc5 {[%emt 0:00:07]} Nh4 {[%emt 0:10:36]} 35. Bc8 {[%emt 0:00:38]} b6 {[%emt 0:00:04]} 36. cxb6 {[%emt 0:00:57]} axb6 {[%emt 0:00:01]} 37. Bb7 {[%emt 0:00:03]} c5 {[%emt 0:00:09]} 38. Ba6 {[%emt 0:01:18]} Nxf3 {[%emt 0:00:13]} 39. Kg2 {[%emt 0:00:23]} Ng5 {[%emt 0:00:19]} 40. Bd3 {[%emt 0:00:51]} Kf6 {[%emt 0:00:14]} 41. h4 {[%emt 0:00:18]} Ne6 {[%emt 0:00:27]} 42. a4 {[%emt 0:01:05]} 0-1

[Event "HUN-chT Youth 2019"]
[Site "Budapest"]
[Date "2019.10.26"]
[Round "1.26"]
[White "Leszko, Bence"]
[Black "Csajbok, Levente Tamas"]
[Result "1-0"]
[ECO "A35"]
[WhiteElo "2201"]
[BlackElo "1820"]
[Annotator "ChessBase"]
[PlyCount "75"]
[EventDate "2019.10.26"]
[EventType "team-tourn"]
[EventCountry "HUN"]
[SourceTitle "playchess.com"]
[Source "ChessBase"]
[SourceQuality "1"]
[TimeControl "5400+30"]

1. Nf3 {[%emt 0:00:00]} Nf6 {[%emt 0:00:00]} 2. c4 {[%emt 0:00:03]} g6 {[%emt 0:00:57]} 3. Nc3 {[%emt 0:01:01]} Bg7 {[%emt 0:00:22]} 4. e3 {[%emt 0:00:45]} O-O {[%emt 0:02:54]} 5. Be2 {[%emt 0:01:05]} c5 {[%emt 0:02:40]} 6. O-O {[%emt 0:01:20]} Nc6 {[%emt 0:01:40]} 7. d4 {[%emt 0:00:37]} cxd4 {[%emt 0:01:47]} 8. Nxd4 {[%emt 0:00:18]} d5 {[%emt 0:03:07]} 9. cxd5 {[%emt 0:04:26]} Nxd5 {[%emt 0:00:47]} 10. Nxd5 {[%emt 0:00:22]} Qxd5 {[%emt 0:01:47]} 11. Bf3 {[%emt 0:00:09]} Qc5 {[%emt 0:01:46]} 12. Nxc6 {[%emt 0:00:52]} bxc6 {[%emt 0:00:05]} 13. Rb1 {[%emt 0:02:11]} Ba6 {[%emt 0:01:19]} 14. Re1 {[%emt 0:05:38]} Rfd8 {[%emt 0:06:19]} 15. Bd2 {[%emt 0:01:44]} Rd6 {[%emt 0:05:45]} 16. Qa4 {[%emt 0:14:11]} Rxd2 {[%emt 0:08:01]} 17. Qxa6 {[%emt 0:00:10]} Qb6 {[%emt 0:04:18]} 18. Qa3 {[%emt 0:08:33]} Rxb2 {[%emt 0:02:09]} 19. Rbc1 {[%emt 0:03:13]} e6 {[%emt 0:13:09]} 20. Rxc6 {[%emt 0:01:19]} Qb5 {[%emt 0:05:00]} 21. Rc5 {[%emt 0:04:10]} Qe8 {[%emt 0:10:01]} 22. Bxa8 {[%emt 0:00:27]} Qxa8 {[%emt 0:00:03]} 23. Rec1 {[%emt 0:01:00]} Rb8 {[%emt 0:01:20]} 24. Qa6 {[%emt 0:00:40]} Bf8 {[%emt 0:04:03]} 25. Rc7 {[%emt 0:01:51]} Qe4 {[%emt 0:05:24]} 26. Qxa7 {[%emt 0:00:47]} Rb1 {[%emt 0:00:39]} 27. Qd4 {[%emt 0:00:23]} Qf5 {[%emt 0:01:38]} 28. Qf4 {[%emt 0:04:26]} Qxf4 {[%emt 0:01:28]} 29. exf4 {[%emt 0:00:03]} Rb2 {[%emt 0:00:13]} 30. R7c2 {[%emt 0:00:05]} Rb4 {[%emt 0:00:32]} 31. g3 {[%emt 0:00:06]} Ra4 {[%emt 0:00:27]} 32. Rb1 {[%emt 0:00:38]} Bd6 {[%emt 0:02:40]} 33. Rb6 {[%emt 0:00:19]} Be7 {[%emt 0:04:26]} 34. Rb7 {[%emt 0:00:08]} Bf6 {[%emt 0:02:47]} 35. Rc8+ {[%emt 0:00:09]} Kg7 {[%emt 0:00:03]} 36. Rcc7 {[%emt 0:00:06]} Bd4 {[%emt 0:00:50]} 37. Rxf7+ {[%emt 0:00:07]} Kg8 {[%emt 0:00:06]} 38. Rfd7 {[%emt 0:00:26]} 1-0